[Event "German-ch Blitz Women 2022"]
[Site "Magdeburg"]
[Date "2022.08.13"]
[Round "4.7"]
[White "Grabowski, Petra"]
[Black "Heil, Marina"]
[Result "0-1"]
[ECO "A80"]
[WhiteElo "1643"]
[BlackElo "1926"]
[Annotator "TA"]
[PlyCount "72"]
[EventDate "2022.08.10"]
[EventType "tourn"]
[EventCountry "GER"]
[SourceTitle "playchess.com"]
[Source "ChessBase"]
[SourceQuality "1"]
[TimeControl "180+2"]

{[%evp 9,72,13,33,6,27,-13,-2,8,10,16,89,105,60,35,47,-79,-87,-96,72,63,63,50,149,-118,-56,-255,-222,-489,-485,-807,-529,-612,-555,-647,-643,-960,-793,-1152,-665,-2185,-2140,-3629,-3094,-29987,-29988,-29991,-29992,-29994,-29995,-29995,-29995,-29997,-29997,-29999,-29997,-29998,-29997,-29997,-29998,-29998,-29996,-29998,-29998,-29998,-29999]} 1. d4 {[%emt 0:00:01]} f5 {[%emt 0:00:01]} 2. h4 {[%emt 0:00:02][%cal Bh2h4,Bh4h5,Bh5h6][%mdl 32]} Nf6 {[%emt 0:00:01]} 3. h5 {[%emt 0:00:02]} e6 {[%emt 0:00:08]} 4. h6 {[%emt 0:00:07]} g6 {[%emt 0:00:07]} 5. Nc3 {[%emt 0:00:02] [#]} d6 $146 {[%emt 0:00:07]} ({Predecessor:} 5... b6 6. Bg5 Bb7 7. Nf3 Be7 8. e3 O-O 9. Bc4 Ne4 10. Nxe4 fxe4 11. Bxe7 Qxe7 {1-0 (53) Vovk,O (2315)-Osmonbekov,T (2137) Chess.com INT 2022}) 6. Bg5 {[%emt 0:00:03][%cal Oe2e4] A80: Dutch Defence: Unusual White second moves.} Be7 {[%emt 0:00:01]} 7. f3 {[%emt 0:00:09]} Nbd7 {[%emt 0:00:19]} 8. Qd2 {[%emt 0:00:12] The position is equal.} O-O {[%emt 0:00:14]} 9. e4 {[%emt 0:00:11]} a6 {[%emt 0:00:14]} (9... Nh5 $11 {keeps the balance.} 10. Bxe7 Qxe7) 10. exf5 $16 {[%emt 0:00:19]} exf5 {[%emt 0:00:03]} 11. O-O-O {[%emt 0:00:05] Bc4+ is the strong threat.} b5 {[%emt 0:00:19] Against Bc4+} 12. g4 {[%emt 0:00:17]} (12. Nh3 $14 {keeps the upper hand.}) 12... fxg4 $17 {[%emt 0:00:14]} 13. fxg4 {[%emt 0:00:02]} Nxg4 $2 {[%emt 0:00:05]} (13... b4 $17 {and life is bright.} 14. Nb1 (14. Bc4+ Kh8 $17) 14... Ne4 15. Bxe7 Qxe7) 14. Bxe7 $16 {[%emt 0:00:23]} Qxe7 {[%emt 0:00:01]} 15. Re1 {[%emt 0:00:07]} Qf7 {[%emt 0:00:13]} ({Black should try} 15... Qd8 $14) 16. Bh3 $2 {[%emt 0:00:15][%mdl 8192]} (16. Bg2 $16 {is forced if you want to stay better.} Nb6 17. Bxa8 Nxa8 18. Nh3) 16... Ndf6 {[%emt 0:00:21]} (16... b4 $17 17. Nd1 {[#]} (17. Bxg4 $2 bxc3 18. bxc3 Nb6 $19) 17... Qxa2 $1 18. Qxb4 Rb8) 17. Rf1 $2 {[%emt 0:00:08] This costs White the game.} (17. Bg2 $15 Rb8 18. Nh3) 17... b4 $19 {[%emt 0:00:05]} 18. Nd1 {[%emt 0:00:10]} (18. Nb1 {only move.}) 18... Qxa2 {[%emt 0:00:04][%cal Ra2a1] [#]} 19. Qe2 {[%emt 0:00:25]} (19. Qd3 $142) 19... Qa1+ {[%emt 0:00:18]} 20. Kd2 {[%emt 0:00:02]} Bf5 {[%emt 0:00:09]} 21. Rxf5 {[%emt 0:00:15]} gxf5 {[%emt 0:00:05]} 22. Qe6+ {[%emt 0:00:06]} Rf7 {[%emt 0:00:08]} 23. Bxg4 {[%emt 0:00:00]} Re8 {[%emt 0:00:07]} ({Inferior is} 23... Nxg4 24. Nf3 Qa4 25. Ng5 $17) 24. Qc4 {[%emt 0:00:00]} Ne4+ {[%emt 0:00:05]} 25. Ke1 {[%emt 0:00:00]} Nc3+ {[%emt 0:00:02]} 26. Kf2 {[%emt 0:00:00]} fxg4+ {[%emt 0:00:01] Black mates.} 27. Kg3 {[%emt 0:00:00]} Qxd1 {[%emt 0:00:07]} 28. Nf3 {[%emt 0:00:00]} Qxf3+ {[%emt 0:00:04]} 29. Kh4 {[%emt 0:00:02]} Qf6+ {[%emt 0:00:03]} 30. Kg3 {[%emt 0:00:02]} Re3+ {[%emt 0:00:01]} 31. Kg2 {[%emt 0:00:03]} Re2+ {[%emt 0:00:02]} 32. Kg3 {[%emt 0:00:06]} Qf3+ {[%emt 0:00:01]} 33. Kh4 {[%emt 0:00:01]} Qxh1+ {[%emt 0:00:01]} 34. Kg5 {[%emt 0:00:01]} Qf3 {[%emt 0:00:07]} 35. bxc3 {[%emt 0:00:05]} Qf6+ {[%emt 0:00:01]} 36. Kh5 {[%emt 0:00:02]} Rh2+ {[%emt 0:00:01] Weighted Error Value: White=1.29/Black=0.50} 0-1

[Event "German-ch Blitz Women 2022"]
[Site "Magdeburg"]
[Date "2022.08.13"]
[Round "4.8"]
[White "Braun, Kristin"]
[Black "Leveikina, Jevgenija"]
[Result "1-0"]
[ECO "B13"]
[WhiteElo "1897"]
[BlackElo "2061"]
[Annotator "NA RC"]
[PlyCount "129"]
[EventDate "2022.08.10"]
[EventType "tourn"]
[EventCountry "GER"]
[SourceTitle "playchess.com"]
[Source "ChessBase"]
[SourceQuality "1"]
[TimeControl "180+2"]

1. e4 {[%emt 0:00:00]} c6 {[%emt 0:00:00]} 2. d4 {[%emt 0:00:01]} d5 {[%emt 0:00:00]} 3. exd5 {[%emt 0:00:01]} cxd5 4. c4 Nf6 {[%emt 0:00:02]} 5. Nf3 {[%emt 0:00:01]} Nc6 {[%emt 0:00:01]} 6. Nc3 {[%emt 0:00:00]} g6 {[%emt 0:00:01]} 7. Bf4 {[%emt 0:00:01]} Bg7 {[%emt 0:00:02]} 8. Be2 {[%emt 0:00:01]} O-O {[%emt 0:00:01]} 9. O-O a6 10. b3 {[%emt 0:00:04]} Bf5 {[%emt 0:00:04]} 11. Rc1 {[%emt 0:00:05]} Rc8 {[%emt 0:00:01]} 12. Re1 {[%emt 0:00:10]} dxc4 {[%emt 0:00:03]} 13. bxc4 {[%emt 0:00:03]} h5 {[%emt 0:00:05]} 14. d5 {[%emt 0:00:21]} Nb4 {[%emt 0:00:02]} 15. a3 {[%emt 0:00:09]} a5 16. axb4 axb4 {[%emt 0:00:06]} 17. Nb5 {[%emt 0:00:07]} Ne4 {[%emt 0:00:06]} 18. Be5 {[%emt 0:00:17]} Qb6 {[%emt 0:00:05]} 19. Bd4 {[%emt 0:00:04]} Qa5 {[%emt 0:00:12]} 20. Bxg7 {[%emt 0:00:07]} Kxg7 {[%emt 0:00:02]} 21. Nfd4 {[%emt 0:00:12]} Qb6 {[%emt 0:00:11]} 22. Nxf5+ {[%emt 0:00:05]} gxf5 {[%emt 0:00:01]} 23. Qd4+ {[%emt 0:00:01]} Qxd4 {[%emt 0:00:02]} 24. Nxd4 {[%emt 0:00:01]} f4 {[%emt 0:00:09]} 25. Bxh5 {[%emt 0:00:05]} Nc3 {[%emt 0:00:01]} 26. Nf5+ {[%emt 0:00:11]} Kf6 {[%emt 0:00:06]} 27. Nxe7 {[%emt 0:00:19]} Rxc4 {[%emt 0:00:02]} 28. d6 {[%emt 0:00:03]} Kg5 {[%emt 0:00:15]} 29. Bf3 {[%emt 0:00:06]} Rd8 {[%emt 0:00:10]} 30. Nd5 {[%emt 0:00:15]} Rxd6 {[%emt 0:00:06]} 31. Nxc3 {[%emt 0:00:01]} bxc3 {[%emt 0:00:02]} 32. Bxb7 {[%emt 0:00:03]} Rd2 {[%emt 0:00:05]} 33. h3 {[%emt 0:00:06]} Rb4 {[%emt 0:00:13]} 34. Rxc3 {[%emt 0:00:03]} Rxb7 {[%emt 0:00:01]} 35. Rc5+ {[%emt 0:00:06]} f5 {[%emt 0:00:03]} 36. g4 {[%emt 0:00:03]} Rbb2 {[%emt 0:00:15]} 37. Rxf5+ {[%emt 0:00:03]} Kg6 {[%emt 0:00:06]} 38. Re6+ {[%emt 0:00:04]} Kg7 {[%emt 0:00:01]} 39. Rxf4 {[%emt 0:00:02]} Rd1+ {[%emt 0:00:01]} 40. Kg2 Rbb1 41. Rc6 {[%emt 0:00:10]} Rg1+ {[%emt 0:00:02]} 42. Kf3 {[%emt 0:00:01]} Rb3+ {[%emt 0:00:01]} 43. Ke4 {[%emt 0:00:01]} Rxh3 {[%emt 0:00:01]} 44. Kf5 {[%emt 0:00:07]} Ra3 {[%emt 0:00:06]} 45. Re4 {[%emt 0:00:03]} Ra5+ {[%emt 0:00:03]} 46. Re5 {[%emt 0:00:02]} Rxe5+ {[%emt 0:00:01]} 47. Kxe5 {[%emt 0:00:01]} Rxg4 {[%emt 0:00:02]} 48. f4 {[%emt 0:00:01]} Rg1 {[%emt 0:00:01]} 49. Rc7+ {[%emt 0:00:05]} Kg6 {[%emt 0:00:16]} 50. f5+ {[%emt 0:00:01]} Kh6 {[%emt 0:00:06]} 51. Kf6 {[%emt 0:00:08]} Ra1 {[%emt 0:00:06]} 52. Rc6 {[%emt 0:00:01]} Kh7 {[%emt 0:00:05]} 53. Rc7+ {[%emt 0:00:03]} Kg8 {[%emt 0:00:05]} 54. Ke7 {[%emt 0:00:10]} Re1+ {[%emt 0:00:02]} 55. Kf6 {[%emt 0:00:01]} Ra1 {[%emt 0:00:02]} 56. Rc8+ {[%emt 0:00:01]} Kh7 {[%emt 0:00:01]} 57. Rc6 {[%emt 0:00:03]} Rb1 {[%emt 0:00:07]} 58. Rd6 {[%emt 0:00:04]} Ra1 {[%emt 0:00:02]} 59. Ke7 {[%emt 0:00:01]} Ra7+ {[%emt 0:00:20]} 60. Rd7 {[%emt 0:00:00]} Ra1 {[%emt 0:00:04]} 61. f6 {[%emt 0:00:02]} Kg6 {[%emt 0:00:11]} 62. f7 {[%emt 0:00:06]} Re1+ {[%emt 0:00:02]} 63. Kd8 {[%emt 0:00:01]} Rf1 {[%emt 0:00:05]} 64. Ke8 {[%emt 0:00:00]} Re1+ {[%emt 0:00:19]} 65. Re7 {[%emt 0:00:01]} 1-0

[Event "German-ch Blitz Women 2022"]
[Site "Magdeburg"]
[Date "2022.08.13"]
[Round "4.9"]
[White "Skibbe, Diana"]
[Black "Kosovska, Olena"]
[Result "0-1"]
[ECO "B32"]
[WhiteElo "1943"]
[BlackElo "1831"]
[Annotator "TA"]
[PlyCount "70"]
[EventDate "2022.08.10"]
[EventType "tourn"]
[EventCountry "GER"]
[SourceTitle "playchess.com"]
[Source "ChessBase"]
[SourceQuality "1"]
[TimeControl "180+2"]

{[%evp 19,70,80,90,92,144,144,162,156,143,41,61,52,58,27,226,214,189,-217,9,-679,-672,-1314,-1008,-1008,-1001,-976,-983,-1505,-1254,-1549,-1154,-1333,-1215,-1184,-1148,-6922,-11380,-7117,-6917,-29989,-29987,-29987,-29988,-29990,-29989,-29992,-29993,-29993,-29994,-29994,-29994,-29995,-29995]} 1. e4 {[%emt 0:00:01]} c5 {[%emt 0:00:00]} 2. Nf3 {[%emt 0:00:01]} Nc6 {[%emt 0:00:01]} 3. d4 {[%emt 0:00:02]} cxd4 {[%emt 0:00:01]} 4. Nxd4 {[%emt 0:00:02]} e5 {[%emt 0:00:01]} 5. Nb5 {[%emt 0:00:02]} a6 {[%emt 0:00:01]} 6. Nd6+ {[%emt 0:00:02]} Bxd6 {[%emt 0:00:02]} 7. Qxd6 {[%emt 0:00:01]} Qf6 {[%emt 0:00:00]} 8. Qd1 {[%emt 0:00:03]} Qg6 {[%emt 0:00:02]} 9. Nc3 {[%emt 0:00:05]} Nge7 {[%emt 0:00:01]} 10. Be3 {[%emt 0:00:06]} O-O {[%emt 0:00:02]} 11. h4 {[%emt 0:00:18][%cal Bh2h4,Bh4h5][%mdl 32] B32: Sicilian: Löwenthal and Kalashnikov Variations.} b5 {[%emt 0:00:16]} (11... d5 $142 12. h5 (12. exd5 Nb4 $14) 12... Qd6) 12. h5 $16 {[%emt 0:00:05]} Qe6 {[%emt 0:00:05] [#]} 13. Nd5 $146 {[%emt 0:00:13] White is clearly better.} ({Predecessor:} 13. g4 Rd8 14. g5 f5 15. Nd5 Qf7 16. g6 hxg6 17. Bg5 gxh5 18. Nxe7+ Nxe7 19. Bxe7 Qxe7 20. Qd5+ {1-0 (20) Gazic,J (2270)-Mueller,J (2076) Kaufungen 2003}) 13... Rb8 {[%emt 0:00:22]} 14. g3 {[%emt 0:00:13]} (14. Bc5 $16) 14... f5 {[%emt 0:00:02]} 15. Bh3 {[%emt 0:00:05][%cal Oh5h6]} Qf7 {[%emt 0:00:17]} 16. Bc5 {[%emt 0:00:23] aiming for Nxe7+.} fxe4 $2 {[%emt 0:00:09]} (16... Bb7 $1 $11 {and Black stays safe.}) 17. Nxe7+ $18 {[%emt 0:00:07]} Nxe7 {[%emt 0:00:03] [#]} 18. O-O $4 {[%emt 0:00:01][%mdl 8192]} (18. Qd6 $1 $18 {[%cal Rd6b8] is the narrow road to win.} e3 19. Rf1) 18... d5 $2 {[%emt 0:00:21] Black converts the advantage convincingly.} (18... d6 $1 $19 19. Bxc8 Rbxc8 20. Qxd6 Nf5) 19. Bd6 $2 {[%emt 0:00:02][%mdl 8192]} (19. Bxc8 $11 Rbxc8 20. Bxe7 Qxe7 21. Qxd5+ Qf7 22. Qxe4) 19... Bxh3 $19 {[%emt 0:00:10]} 20. Qe2 {[%emt 0:00:06]} Bxf1 {[%emt 0:00:05]} 21. Rxf1 {[%emt 0:00:01]} Rb6 {[%emt 0:00:10][%cal Bb8b6,Bb6h6,Bh6c6,Bc6c2][%mdl 32]} 22. Bc5 {[%emt 0:00:02]} Rh6 {[%emt 0:00:04]} 23. g4 {[%emt 0:00:02]} Rc6 {[%emt 0:00:03]} 24. Be3 {[%emt 0:00:02]} d4 {[%emt 0:00:01]} 25. Bc1 {[%emt 0:00:03]} Qf3 {[%emt 0:00:12]} 26. Qxf3 {[%emt 0:00:06]} Rxf3 {[%emt 0:00:02]} 27. Kg2 {[%emt 0:00:02]} Rxc2 {[%emt 0:00:03]} 28. Bg5 {[%emt 0:00:02]} Nd5 {[%emt 0:00:02] [#] ( -> ...Ne3+)} 29. b3 {[%emt 0:00:03]} Nf4+ {[%emt 0:00:02] Black mates.} 30. Bxf4 {[%emt 0:00:02]} Rxf4 {[%emt 0:00:03]} 31. Kg3 {[%emt 0:00:02]} Rc3+ {[%emt 0:00:04]} 32. Kh4 {[%emt 0:00:02]} e3 {[%emt 0:00:03][%cal Be4e3,Be3e2][%mdl 32]} 33. f3 {[%emt 0:00:03]} e2 {[%emt 0:00:02][%csl LRf1,LRf3]} 34. Re1 {[%emt 0:00:01]} d3 {[%emt 0:00:03]} 35. Kg5 {[%emt 0:00:02]} Rxf3 {[%emt 0:00:04] Weighted Error Value: White=1.78/Black=0.97} 0-1

[Event "German-ch Blitz Women 2022"]
[Site "Magdeburg"]
[Date "2022.08.13"]
[Round "4.10"]
[White "Rath, Alina"]
[Black "Falke, Ornella"]
[Result "1-0"]
[ECO "A22"]
[WhiteElo "2062"]
[BlackElo "1912"]
[Annotator "NA RC"]
[PlyCount "151"]
[EventDate "2022.08.10"]
[EventType "tourn"]
[EventCountry "GER"]
[SourceTitle "playchess.com"]
[Source "ChessBase"]
[SourceQuality "1"]
[TimeControl "180+2"]

1. c4 {[%emt 0:00:01]} Nf6 {[%emt 0:00:02]} 2. Nc3 {[%emt 0:00:01]} e5 {[%emt 0:00:01]} 3. g3 {[%emt 0:00:02]} c6 {[%emt 0:00:07]} 4. d4 {[%emt 0:00:02]} exd4 {[%emt 0:00:04]} 5. Qxd4 {[%emt 0:00:01]} Na6 {[%emt 0:00:10]} 6. a3 {[%emt 0:00:16]} Bc5 {[%emt 0:00:07]} 7. Qd1 {[%emt 0:00:02]} O-O {[%emt 0:00:25]} 8. Bg2 {[%emt 0:00:01]} Re8 {[%emt 0:00:13]} 9. e3 {[%emt 0:00:08]} Nc7 {[%emt 0:00:32]} 10. b4 {[%emt 0:00:06]} Bf8 {[%emt 0:00:02]} 11. Nge2 {[%emt 0:00:08]} d5 {[%emt 0:00:02]} 12. cxd5 {[%emt 0:00:02]} cxd5 {[%emt 0:00:07]} 13. O-O {[%emt 0:00:02]} Bg4 {[%emt 0:00:00]} 14. h3 {[%emt 0:00:02]} Bh5 {[%emt 0:00:01]} 15. g4 {[%emt 0:00:04]} Bg6 {[%emt 0:00:01]} 16. Bb2 {[%emt 0:00:01]} Rc8 {[%emt 0:00:01]} 17. Ng3 {[%emt 0:00:09]} a5 {[%emt 0:00:28]} 18. b5 {[%emt 0:00:20]} Qd6 {[%emt 0:00:08]} 19. a4 {[%emt 0:00:06]} Ne4 {[%emt 0:00:13]} 20. Nce2 {[%emt 0:00:22]} Ne6 {[%emt 0:00:16]} 21. Bd4 {[%emt 0:00:35]} N6c5 {[%emt 0:00:06]} 22. Rc1 {[%emt 0:00:13]} Ne6 {[%emt 0:00:20]} 23. Bf3 {[%emt 0:00:20]} Qb4 {[%emt 0:00:01]} 24. Rxc8 {[%emt 0:00:03]} Rxc8 {[%emt 0:00:01]} 25. Nxe4 {[%emt 0:00:07]} dxe4 {[%emt 0:00:01]} 26. Bg2 {[%emt 0:00:02]} Nxd4 {[%emt 0:00:03]} 27. Nxd4 {[%emt 0:00:01]} Bc5 {[%emt 0:00:04]} 28. Ne2 {[%emt 0:00:06]} b6 {[%emt 0:00:03]} 29. Ng3 {[%emt 0:00:01]} Re8 {[%emt 0:00:01]} 30. Qd7 {[%emt 0:00:02]} Rf8 {[%emt 0:00:03]} 31. Qd1 {[%emt 0:00:05]} Qc4 {[%emt 0:00:01]} 32. Qb1 {[%emt 0:00:05]} Qe6 {[%emt 0:00:01]} 33. Rd1 {[%emt 0:00:01]} Re8 {[%emt 0:00:01]} 34. Qc2 {[%emt 0:00:03]} h6 {[%emt 0:00:01]} 35. Qd2 {[%emt 0:00:01]} Bb4 {[%emt 0:00:01]} 36. Qd7 {[%emt 0:00:02]} Kh7 {[%emt 0:00:02]} 37. Qxe6 {[%emt 0:00:01]} Rxe6 {[%emt 0:00:00]} 38. Rd7 {[%emt 0:00:01]} Re5 {[%emt 0:00:03]} 39. Rb7 {[%emt 0:00:02]} Bc5 {[%emt 0:00:00]} 40. Rd7 {[%emt 0:00:02]} f5 {[%emt 0:00:04]} 41. Ne2 {[%emt 0:00:02]} fxg4 {[%emt 0:00:02]} 42. hxg4 {[%emt 0:00:01]} Be8 {[%emt 0:00:01]} 43. Rd8 {[%emt 0:00:03]} Kg6 {[%emt 0:00:01]} 44. Nf4+ {[%emt 0:00:01]} Kf7 {[%emt 0:00:01]} 45. Bh3 {[%emt 0:00:08]} h5 {[%emt 0:00:02]} 46. gxh5 {[%emt 0:00:02]} Kf6 {[%emt 0:00:02]} 47. Ne6 Bxh5 {[%emt 0:00:01]} 48. Nxc5 {[%emt 0:00:04]} Rxc5 {[%emt 0:00:02]} 49. Rd6+ {[%emt 0:00:00]} Ke7 {[%emt 0:00:02]} 50. Rxb6 {[%emt 0:00:01]} Rc4 {[%emt 0:00:02]} 51. Ra6 {[%emt 0:00:03]} Rxa4 {[%emt 0:00:02]} 52. b6 {[%emt 0:00:02]} Ra1+ {[%emt 0:00:01]} 53. Kh2 {[%emt 0:00:01]} Be2 {[%emt 0:00:02]} 54. Ra7+ {[%emt 0:00:01]} Kf6 {[%emt 0:00:01]} 55. b7 {[%emt 0:00:01]} Rb1 {[%emt 0:00:02]} 56. Bc8 {[%emt 0:00:01]} Bf3 {[%emt 0:00:03]} 57. b8=Q {[%emt 0:00:04]} Rxb8 58. Bh3 {[%emt 0:00:03]} Rh8 {[%emt 0:00:03]} 59. Kg3 {[%emt 0:00:01]} Bd1 {[%emt 0:00:06]} 60. Rxa5 {[%emt 0:00:01]} Rd8 {[%emt 0:00:01]} 61. Ra6+ {[%emt 0:00:02]} Kf7 {[%emt 0:00:01]} 62. Kf4 {[%emt 0:00:01]} Bc2 {[%emt 0:00:01]} 63. Rc6 {[%emt 0:00:01]} Bd3 {[%emt 0:00:01]} 64. Bf5 {[%emt 0:00:02]} Re8 {[%emt 0:00:01]} 65. Bg6+ {[%emt 0:00:01]} Ke7 {[%emt 0:00:02]} 66. Bxe8 {[%emt 0:00:02]} Kxe8 {[%emt 0:00:00]} 67. Ke5 {[%emt 0:00:02]} Ke7 {[%emt 0:00:01]} 68. Rc7+ {[%emt 0:00:02]} Kf8 {[%emt 0:00:01]} 69. Kf5 {[%emt 0:00:01]} Bb1 70. Kg6 Bd3 {[%emt 0:00:07]} 71. Rxg7 {[%emt 0:00:03]} Be2 {[%emt 0:00:01]} 72. Rc7 {[%emt 0:00:01]} Bf3 {[%emt 0:00:03]} 73. Kf6 {[%emt 0:00:01]} Ke8 {[%emt 0:00:01]} 74. Ke5 {[%emt 0:00:01]} Kd8 {[%emt 0:00:02]} 75. Rc4 {[%emt 0:00:01]} Kd7 {[%emt 0:00:00]} 76. Rxe4 {[%emt 0:00:01]} 1-0

[Event "German-ch Blitz Women 2022"]
[Site "Magdeburg"]
[Date "2022.08.13"]
[Round "4.11"]
[White "Kunze, Kerstin"]
[Black "Stangl, Anita"]
[Result "1-0"]
[ECO "C00"]
[WhiteElo "2020"]
[BlackElo "2023"]
[Annotator "NA RC"]
[PlyCount "119"]
[EventDate "2022.08.10"]
[EventType "tourn"]
[EventCountry "GER"]
[SourceTitle "playchess.com"]
[Source "ChessBase"]
[SourceQuality "1"]
[TimeControl "180+2"]

1. e4 {[%emt 0:00:02]} e6 {[%emt 0:00:00]} 2. Qe2 {[%emt 0:00:06]} b6 {[%emt 0:00:05]} 3. Nf3 {[%emt 0:00:06]} Bb7 {[%emt 0:00:02]} 4. g3 {[%emt 0:00:02]} d6 {[%emt 0:00:01]} 5. Bg2 {[%emt 0:00:01]} Nf6 {[%emt 0:00:04]} 6. d3 {[%emt 0:00:01]} Be7 {[%emt 0:00:05]} 7. O-O {[%emt 0:00:01]} O-O {[%emt 0:00:03]} 8. b3 {[%emt 0:00:09]} d5 {[%emt 0:00:01]} 9. e5 {[%emt 0:00:07]} Nfd7 {[%emt 0:00:01]} 10. d4 {[%emt 0:00:06]} Ba6 {[%emt 0:00:04]} 11. c4 {[%emt 0:00:01]} c5 {[%emt 0:00:01]} 12. Bb2 {[%emt 0:00:39]} Nc6 {[%emt 0:00:03]} 13. Rd1 {[%emt 0:00:17]} Rc8 {[%emt 0:00:04]} 14. Nbd2 {[%emt 0:00:39]} cxd4 {[%emt 0:00:10]} 15. Bxd4 {[%emt 0:00:19]} Nxd4 {[%emt 0:00:17]} 16. Nxd4 {[%emt 0:00:02]} Qc7 {[%emt 0:00:01]} 17. N2f3 {[%emt 0:00:49]} dxc4 {[%emt 0:00:05]} 18. Rac1 {[%emt 0:00:00]} c3 {[%emt 0:00:41]} 19. Qxa6 {[%emt 0:00:02]} Nxe5 {[%emt 0:00:05]} 20. Nxe5 {[%emt 0:00:02]} Qxe5 {[%emt 0:00:01]} 21. Qe2 {[%emt 0:00:04]} Qc5 {[%emt 0:00:10]} 22. Qe3 {[%emt 0:00:01]} Bf6 {[%emt 0:00:03]} 23. Nf3 {[%emt 0:00:01]} Qa5 {[%emt 0:00:05]} 24. Qe2 {[%emt 0:00:02]} Rfd8 {[%emt 0:00:09]} 25. Rxd8+ {[%emt 0:00:01]} Rxd8 {[%emt 0:00:01]} 26. h3 {[%emt 0:00:03]} h6 {[%emt 0:00:02]} 27. Qc2 {[%emt 0:00:06]} Rc8 {[%emt 0:00:06]} 28. Qe2 {[%emt 0:00:02]} Qb4 {[%emt 0:00:09]} 29. Ne1 {[%emt 0:00:02]} Qa3 {[%emt 0:00:03]} 30. Nd3 {[%emt 0:00:01]} e5 {[%emt 0:00:04]} 31. Be4 Be7 {[%emt 0:00:08]} 32. Rc2 {[%emt 0:00:02]} Bd6 {[%emt 0:00:02]} 33. Qg4 {[%emt 0:00:02]} Rd8 {[%emt 0:00:05]} 34. Qf5 {[%emt 0:00:01]} g6 {[%emt 0:00:03]} 35. Qf6 {[%emt 0:00:01]} Be7 {[%emt 0:00:07]} 36. Qxe5 {[%emt 0:00:01]} Rc8 {[%emt 0:00:06]} 37. Bd5 {[%emt 0:00:01]} Qd6 {[%emt 0:00:03]} 38. Qxd6 {[%emt 0:00:02]} Bxd6 {[%emt 0:00:00]} 39. Bc4 {[%emt 0:00:01]} Kg7 {[%emt 0:00:05]} 40. Kf1 {[%emt 0:00:01]} Be7 {[%emt 0:00:02]} 41. Ke2 {[%emt 0:00:02]} Bf6 {[%emt 0:00:00]} 42. Nf4 {[%emt 0:00:01]} Re8+ {[%emt 0:00:02]} 43. Kf3 {[%emt 0:00:01]} Re1 {[%emt 0:00:01]} 44. Ng2 {[%emt 0:00:01]} Bd4 {[%emt 0:00:02]} 45. Ne3 {[%emt 0:00:01]} Rb1 {[%emt 0:00:01]} 46. Kg2 {[%emt 0:00:03]} Rb2 {[%emt 0:00:01]} 47. Bd3 {[%emt 0:00:02]} a5 {[%emt 0:00:01]} 48. Kf3 {[%emt 0:00:01]} b5 {[%emt 0:00:01]} 49. Ke4 {[%emt 0:00:01]} Bf6 {[%emt 0:00:02]} 50. Nd5 {[%emt 0:00:02]} a4 {[%emt 0:00:06]} 51. Nxf6 {[%emt 0:00:01]} Kxf6 {[%emt 0:00:01]} 52. Rxb2 {[%emt 0:00:04]} cxb2 53. Bc2 Ke6 {[%emt 0:00:07]} 54. Kd4 {[%emt 0:00:01]} f5 {[%emt 0:00:03]} 55. bxa4 {[%emt 0:00:05]} bxa4 {[%emt 0:00:01]} 56. Kc3 {[%emt 0:00:01]} a3 {[%emt 0:00:03]} 57. Kb3 {[%emt 0:00:01]} Kd5 {[%emt 0:00:00]} 58. Kxa3 {[%emt 0:00:01]} Kd4 {[%emt 0:00:01]} 59. Kxb2 {[%emt 0:00:02]} Kc4 {[%emt 0:00:00]} 60. a4 {[%emt 0:00:01]} 1-0

[Event "German-ch Blitz Women 2022"]
[Site "Magdeburg"]
[Date "2022.08.13"]
[Round "4.12"]
[White "Doll, Rebecca"]
[Black "Wulf, Constanze"]
[Result "1-0"]
[ECO "B01"]
[WhiteElo "1933"]
[BlackElo "1835"]
[Annotator "TA"]
[PlyCount "60"]
[EventDate "2022.08.10"]
[EventType "tourn"]
[EventCountry "GER"]
[SourceTitle "playchess.com"]
[Source "ChessBase"]
[SourceQuality "1"]
[TimeControl "180+2"]

{[%evp 10,60,62,-14,40,29,66,60,68,64,76,61,63,46,100,82,104,99,204,202,308,249,353,256,348,254,360,271,764,275,559,247,389,350,379,197,335,322,433,426,544,524,499,479,1511,1515,1577,1635,4185,3914,2410,2355,1409]} 1. e4 {[%emt 0:00:02]} d5 {[%emt 0:00:01]} 2. exd5 {[%emt 0:00:03]} Qxd5 {[%emt 0:00:01]} 3. Nc3 {[%emt 0:00:01]} Qd6 {[%emt 0:00:01]} 4. d4 {[%emt 0:00:03]} Nf6 {[%emt 0:00:07]} 5. Nf3 {[%emt 0:00:02]} a6 {[%emt 0:00:16]} 6. Ne5 {[%emt 0:00:14]} (6. Bd3 $14) 6... e6 {[%emt 0:00:46] B01: Scandinavian Defence.} ({Black should try} 6... Nc6 $11) 7. Bf4 {[%emt 0:00:02][%cal Oe5g6] [#] Hoping for Ng6!} Qd8 {[%emt 0:00:24]} 8. Be2 {[%emt 0:00:15]} Bb4 {[%emt 0:00:04] White is slightly better.} 9. O-O {[%emt 0:00:09]} O-O {[%emt 0:00:06]} 10. Qd3 {[%emt 0:00:19] [#]} Nbd7 $146 {[%emt 0:00:38]} ({Predecessor:} 10... Bxc3 11. bxc3 Nd5 12. Bd2 Nd7 13. f4 Qe7 14. Qh3 f5 15. c4 N5f6 16. Nd3 Qd6 {1-0 (38) Petkovic,R (2280)-Neaga,H (1794) Senta 2011}) 11. Rad1 {[%emt 0:00:16] 0x0.0002db4efbf0dp-1022s more active pieces. The black rooks are badly placed.} Nb6 {[%emt 0:00:32]} (11... Nxe5 $14 12. Bxe5 (12. dxe5 Qxd3 13. Rxd3 Bxc3 $14) 12... Bd6) 12. Ne4 {[%emt 0:00:24]} Nbd5 {[%emt 0:00:15]} 13. Bc1 {[%emt 0:00:12]} Bd7 {[%emt 0:00:08]} (13... Bd6 $16) 14. c4 $18 {[%emt 0:00:13][%cal Bc2c4,Bc4c5][%mdl 32]} Nb6 {[%emt 0:00:05]} (14... Nxe4 {is a better defense.} 15. Qxe4 Ba4) 15. c5 {[%emt 0:00:03]} Nbd5 {[%emt 0:00:03]} (15... Nxe4 $142 16. Qxe4 (16. cxb6 Nf6 $14) 16... Nd5) 16. a3 {[%emt 0:00:03]} Ba5 {[%emt 0:00:04]} 17. b4 {[%emt 0:00:03]} Bxb4 {[%emt 0:00:01]} (17... Nxe4 $142 18. Nxd7 (18. Qxe4 Nc3 $16) 18... Qxd7) 18. axb4 {[%emt 0:00:01] aiming for Bg5.} Nxb4 $2 {[%emt 0:00:01]} (18... Nxe4 19. Nxd7 (19. Qxe4 Nc3 $18) 19... Qxd7) 19. Qf3 $2 {[%emt 0:00:10]} (19. Nxf6+ Qxf6 20. Nxd7) 19... Nbd5 $2 {[%emt 0:00:02]} (19... Nfd5 20. Qg3 Qe7) 20. Bc4 {[%emt 0:00:05]} (20. Bg5 $142) 20... Bb5 {[%emt 0:00:01]} (20... Nxe4 {was necessary.} 21. Qxe4 Nc3) 21. Bxb5 {[%emt 0:00:04]} axb5 {[%emt 0:00:01]} 22. Nxf6+ {[%emt 0:00:02]} (22. Bg5 $142) 22... Nxf6 {[%emt 0:00:01]} (22... Qxf6 {might work better.} 23. Qb3 Qe7) 23. Qxb7 {[%emt 0:00:07]} Ra4 {[%emt 0:00:05]} 24. Qxb5 {[%emt 0:00:08] White is clearly winning.} Rxd4 {[%emt 0:00:01]} 25. Nc6 {[%emt 0:00:11][%csl LRd4,LRd8]} Rxd1 {[%emt 0:00:03]} 26. Nxd8 {[%emt 0:00:02]} Rxf1+ {[%emt 0:00:01]} (26... Rdxd8 $142 27. Bb2 Nd5) 27. Kxf1 {[%emt 0:00:01]} Rxd8 {[%emt 0:00:00]} 28. Bg5 {[%emt 0:00:05]} Rd1+ {[%emt 0:00:04]} 29. Ke2 {[%emt 0:00:01] [#] Threatening mate with Qb8+.} Rd8 {[%emt 0:00:05] Prevents Qb8.} 30. Bxf6 {[%emt 0:00:03]} gxf6 {[%emt 0:00:01] Black got outplayed after the opening.  Weighted Error Value: White=0.66/Black=0.88} 1-0